[Event "*** Titled Tuesday Blitz"]
[Site "Chess.com"]
[Date "2020.11.03"]
[Round "6"]
[White "elisak43"]
[Black "BabyFacedAssasin"]
[Result "1/2-1/2"]
[WhiteElo "2488"]
[BlackElo "2267"]
[TimeControl "180+1"]
[EndTime "11:10:52 PST"]
[Termination "Game drawn - insufficient material"]

1. e4 {[%clk 0:03:00.9]} 1... c5 {[%clk 0:02:59.7]} 2. Nf3 {[%clk 0:03:00.6]}
2... d6 {[%clk 0:02:59.3]} 3. Bb5+ {[%clk 0:03:00.8]} 3... Bd7 {[%clk
0:02:56.9]} 4. Bxd7+ {[%clk 0:03:00.6]} 4... Qxd7 {[%clk 0:02:57.8]} 5. O-O
{[%clk 0:03:01.4]} 5... g6 {[%clk 0:02:56.3]} 6. c3 {[%clk 0:03:00.1]} 6... Bg7
{[%clk 0:02:55.4]} 7. d4 {[%clk 0:03:00.5]} 7... cxd4 {[%clk 0:02:54.9]} 8. cxd4
{[%clk 0:03:01.4]} 8... Nc6 {[%clk 0:02:52.3]} 9. d5 {[%clk 0:02:58]} 9... Nb8
{[%clk 0:02:41]} 10. Nc3 {[%clk 0:02:54.8]} 10... Nf6 {[%clk 0:02:39.5]} 11. e5
{[%clk 0:02:55.2]} 11... dxe5 {[%clk 0:02:32]} 12. Nxe5 {[%clk 0:02:54.7]} 12...
Qf5 {[%clk 0:02:22.9]} 13. Nb5 {[%clk 0:02:32.7]} 13... Na6 {[%clk 0:01:56.3]}
14. Re1 {[%clk 0:02:11.5]} 14... O-O {[%clk 0:01:53.8]} 15. Nd4 {[%clk
0:02:08.9]} 15... Qh5 {[%clk 0:01:40.1]} 16. Qxh5 {[%clk 0:02:04.2]} 16... Nxh5
{[%clk 0:01:41]} 17. Nef3 {[%clk 0:02:04.8]} 17... Rfd8 {[%clk 0:01:36.3]} 18.
Rxe7 {[%clk 0:01:58.1]} 18... Rxd5 {[%clk 0:01:36.1]} 19. Be3 {[%clk 0:01:58.5]}
19... Rad8 {[%clk 0:01:30.5]} 20. Rxb7 {[%clk 0:01:54.1]} 20... Nc5 {[%clk
0:01:12.9]} 21. Rxa7 {[%clk 0:01:52.2]} 21... Ne6 {[%clk 0:01:01.8]} 22. g4
{[%clk 0:01:25.9]} 22... Nxd4 {[%clk 0:00:47.8]} 23. Nxd4 {[%clk 0:01:16.1]}
23... Bxd4 {[%clk 0:00:40.6]} 24. Bxd4 {[%clk 0:01:15.3]} 24... Nf4 {[%clk
0:00:38.1]} 25. Ra4 {[%clk 0:00:39.1]} 25... Rxd4 {[%clk 0:00:37.1]} 26. Rxd4
{[%clk 0:00:40]} 26... Rxd4 {[%clk 0:00:37.4]} 27. a4 {[%clk 0:00:36.8]} 27...
Rb4 {[%clk 0:00:30.2]} 28. a5 {[%clk 0:00:35]} 28... Rxb2 {[%clk 0:00:30.4]} 29.
a6 {[%clk 0:00:35.6]} 29... Rb8 {[%clk 0:00:31]} 30. a7 {[%clk 0:00:36.5]} 30...
Ra8 {[%clk 0:00:31.6]} 31. f3 {[%clk 0:00:32.7]} 31... Ne2+ {[%clk 0:00:30]} 32.
Kf2 {[%clk 0:00:31.4]} 32... Nd4 {[%clk 0:00:30.9]} 33. Ra6 {[%clk 0:00:26]}
33... Nb5 {[%clk 0:00:28.3]} 34. Rb6 {[%clk 0:00:26.1]} 34... Nxa7 {[%clk
0:00:28.5]} 35. Ra6 {[%clk 0:00:26.7]} 35... Kf8 {[%clk 0:00:27.6]} 36. Kg3
{[%clk 0:00:24.6]} 36... h6 {[%clk 0:00:24.4]} 37. Kf4 {[%clk 0:00:23.5]} 37...
Ke7 {[%clk 0:00:24.2]} 38. g5 {[%clk 0:00:21]} 38... hxg5+ {[%clk 0:00:20.3]}
39. Kxg5 {[%clk 0:00:21.9]} 39... Kf8 {[%clk 0:00:20.1]} 40. Kf6 {[%clk
0:00:20.9]} 40... Kg8 {[%clk 0:00:20.3]} 41. f4 {[%clk 0:00:20.5]} 41... Kf8
{[%clk 0:00:14.5]} 42. h4 {[%clk 0:00:20.3]} 42... Kg8 {[%clk 0:00:14.6]} 43. f5
{[%clk 0:00:19.7]} 43... gxf5 {[%clk 0:00:14.8]} 44. Kxf5 {[%clk 0:00:20.6]}
44... Kg7 {[%clk 0:00:15]} 45. Kg5 {[%clk 0:00:19.4]} 45... f6+ {[%clk
0:00:09.9]} 46. Kf5 {[%clk 0:00:15.3]} 46... Kf7 {[%clk 0:00:06.9]} 47. h5
{[%clk 0:00:15.2]} 47... Kg7 {[%clk 0:00:07.3]} 48. h6+ {[%clk 0:00:14.9]} 48...
Kxh6 {[%clk 0:00:07.4]} 49. Kxf6 {[%clk 0:00:15.2]} 49... Kh7 {[%clk 0:00:07.2]}
50. Kf7 {[%clk 0:00:09.8]} 50... Rg8 {[%clk 0:00:04.9]} 51. Rh6+ {[%clk
0:00:08.1]} 51... Kxh6 {[%clk 0:00:04.8]} 52. Kxg8 {[%clk 0:00:08.5]} 1/2-1/2

[Event "*** Titled Tuesday Blitz"]
[Site "Chess.com"]
[Date "2020.11.03"]
[Round "6"]
[White "dpopadic"]
[Black "AmirBagheri78"]
[Result "0-1"]
[WhiteElo "2415"]
[BlackElo "2582"]
[TimeControl "180+1"]
[EndTime "11:10:55 PST"]
[Termination "AmirBagheri78 won on time"]

1. e4 {[%clk 0:03:00.9]} 1... c6 {[%clk 0:02:44.8]} 2. d4 {[%clk 0:02:59.8]}
2... d5 {[%clk 0:02:44.8]} 3. Nd2 {[%clk 0:02:59.7]} 3... dxe4 {[%clk
0:02:44.5]} 4. Nxe4 {[%clk 0:02:59.6]} 4... Nf6 {[%clk 0:02:43.8]} 5. Ng3 {[%clk
0:02:58.6]} 5... Bg4 {[%clk 0:02:38.6]} 6. Be2 {[%clk 0:02:55.3]} 6... Bxe2
{[%clk 0:02:37.5]} 7. N1xe2 {[%clk 0:02:55.2]} 7... e6 {[%clk 0:02:37.4]} 8. O-O
{[%clk 0:02:52.1]} 8... Be7 {[%clk 0:02:37.6]} 9. Qd3 {[%clk 0:02:51.4]} 9...
O-O {[%clk 0:02:36.7]} 10. Be3 {[%clk 0:02:47.9]} 10... Nbd7 {[%clk 0:02:34.2]}
11. Rad1 {[%clk 0:02:47.6]} 11... Qa5 {[%clk 0:02:33.5]} 12. Qb3 {[%clk
0:02:38.9]} 12... Qb6 {[%clk 0:02:33]} 13. h3 {[%clk 0:02:31.4]} 13... Rfd8
{[%clk 0:02:32.3]} 14. Bc1 {[%clk 0:02:29.3]} 14... a5 {[%clk 0:02:31.2]} 15.
Qf3 {[%clk 0:02:28]} 15... Nf8 {[%clk 0:02:25.4]} 16. c3 {[%clk 0:02:20]} 16...
a4 {[%clk 0:02:23.4]} 17. Nf4 {[%clk 0:02:14.9]} 17... Qb5 {[%clk 0:02:21.1]}
18. Rfe1 {[%clk 0:02:11.5]} 18... Ng6 {[%clk 0:02:15.7]} 19. Nxg6 {[%clk
0:02:09.4]} 19... hxg6 {[%clk 0:02:15.2]} 20. Re5 {[%clk 0:01:57.4]} 20... Qc4
{[%clk 0:02:14.8]} 21. a3 {[%clk 0:01:54.8]} 21... Rd5 {[%clk 0:02:11.4]} 22.
Rde1 {[%clk 0:01:52.7]} 22... Bd6 {[%clk 0:02:10.9]} 23. R5e2 {[%clk 0:01:47.5]}
23... Bxg3 {[%clk 0:02:05]} 24. Qxg3 {[%clk 0:01:46.7]} 24... Rd7 {[%clk
0:02:02.8]} 25. Bg5 {[%clk 0:01:37.5]} 25... Nd5 {[%clk 0:01:55.9]} 26. Bc1
{[%clk 0:01:34.3]} 26... Ra5 {[%clk 0:01:51.3]} 27. Qb8+ {[%clk 0:01:24]} 27...
Kh7 {[%clk 0:01:50.6]} 28. Re4 {[%clk 0:01:16.4]} 28... Nf6 {[%clk 0:01:47.6]}
29. R4e2 {[%clk 0:01:11.3]} 29... Rf5 {[%clk 0:01:45.5]} 30. Qc8 {[%clk
0:01:07.5]} 30... Qd5 {[%clk 0:01:40]} 31. Re5 {[%clk 0:01:00.5]} 31... Rxe5
{[%clk 0:01:27.6]} 32. Rxe5 {[%clk 0:00:59.8]} 32... Qd6 {[%clk 0:01:27.5]} 33.
Bf4 {[%clk 0:00:56]} 33... Qe7 {[%clk 0:01:15.5]} 34. Qa8 {[%clk 0:00:53.9]}
34... Nd5 {[%clk 0:01:11.2]} 35. Bg3 {[%clk 0:00:51.4]} 35... Nb6 {[%clk
0:01:02.2]} 36. Qa7 {[%clk 0:00:43.2]} 36... Nc4 {[%clk 0:01:01.7]} 37. Re2
{[%clk 0:00:41]} 37... b5 {[%clk 0:01:00.3]} 38. Qa8 {[%clk 0:00:37.2]} 38...
Rd5 {[%clk 0:00:50.8]} 39. Qxc6 {[%clk 0:00:35.7]} 39... Qd7 {[%clk 0:00:50.9]}
40. Qa8 {[%clk 0:00:33.4]} 40... g5 {[%clk 0:00:49.8]} 41. Qb8 {[%clk 0:00:30]}
41... f6 {[%clk 0:00:47.8]} 42. Qa8 {[%clk 0:00:28.7]} 42... Kg6 {[%clk
0:00:46.5]} 43. Qa6 {[%clk 0:00:28.3]} 43... Kf7 {[%clk 0:00:46]} 44. Qa8 {[%clk
0:00:26.6]} 44... Kg6 {[%clk 0:00:45]} 45. Qg8 {[%clk 0:00:25.3]} 45... Qf7
{[%clk 0:00:43.2]} 46. Qb8 {[%clk 0:00:24.2]} 46... Qd7 {[%clk 0:00:42.6]} 47.
Qg8 {[%clk 0:00:23]} 47... Kf5 {[%clk 0:00:40.4]} 48. Bh2 {[%clk 0:00:19.6]}
48... e5 {[%clk 0:00:32.4]} 49. Qh7+ {[%clk 0:00:06.3]} 49... Ke6 {[%clk
0:00:32.1]} 50. g4 {[%clk 0:00:06]} 50... Kf7 {[%clk 0:00:29.7]} 51. dxe5 {[%clk
0:00:02.8]} 51... Rd1+ {[%clk 0:00:29.4]} 52. Kg2 {[%clk 0:00:01.7]} 52... Qd5+
{[%clk 0:00:29.2]} 0-1

[Event "*** Titled Tuesday Blitz"]
[Site "Chess.com"]
[Date "2020.11.03"]
[Round "6"]
[White "Godzillator"]
[Black "Tashik"]
[Result "1-0"]
[WhiteElo "2329"]
[BlackElo "2485"]
[TimeControl "180+1"]
[EndTime "11:10:58 PST"]
[Termination "Godzillator won on time"]

1. d4 {[%clk 0:03:00.9]} 1... Nf6 {[%clk 0:02:59.1]} 2. c4 {[%clk 0:03:01.1]}
2... c5 {[%clk 0:02:58.5]} 3. d5 {[%clk 0:03:01]} 3... b5 {[%clk 0:02:58.3]} 4.
Nf3 {[%clk 0:03:00.5]} 4... g6 {[%clk 0:02:50.5]} 5. Qc2 {[%clk 0:03:00.1]} 5...
bxc4 {[%clk 0:02:49.3]} 6. e4 {[%clk 0:02:59.7]} 6... d6 {[%clk 0:02:49.8]} 7.
Nc3 {[%clk 0:02:59.4]} 7... Bg7 {[%clk 0:02:49.5]} 8. Bxc4 {[%clk 0:02:59.4]}
8... O-O {[%clk 0:02:49.8]} 9. O-O {[%clk 0:02:59.4]} 9... Nbd7 {[%clk
0:02:41.6]} 10. b3 {[%clk 0:02:56.9]} 10... Nxe4 {[%clk 0:02:36.5]} 11. Qxe4
{[%clk 0:02:45.4]} 11... Bxc3 {[%clk 0:02:36]} 12. Rb1 {[%clk 0:02:45.4]} 12...
Bg7 {[%clk 0:02:36.4]} 13. Bb2 {[%clk 0:02:43.5]} 13... Nf6 {[%clk 0:02:27.3]}
14. Qe2 {[%clk 0:02:42.3]} 14... a5 {[%clk 0:02:03.6]} 15. Rfe1 {[%clk
0:02:36.9]} 15... Ra7 {[%clk 0:02:04]} 16. Rbd1 {[%clk 0:02:32.9]} 16... Bg4
{[%clk 0:01:36.5]} 17. h3 {[%clk 0:02:31.7]} 17... Bxf3 {[%clk 0:01:36.5]} 18.
Qxf3 {[%clk 0:02:32]} 18... Nd7 {[%clk 0:01:37.1]} 19. Bxg7 {[%clk 0:02:24.5]}
19... Kxg7 {[%clk 0:01:38]} 20. Qc3+ {[%clk 0:02:21]} 20... Kg8 {[%clk
0:01:37.5]} 21. f4 {[%clk 0:02:16.7]} 21... a4 {[%clk 0:01:34.2]} 22. f5 {[%clk
0:02:06.6]} 22... axb3 {[%clk 0:01:29.7]} 23. axb3 {[%clk 0:02:06.1]} 23... Ne5
{[%clk 0:01:29.8]} 24. fxg6 {[%clk 0:02:05.7]} 24... hxg6 {[%clk 0:01:28.5]} 25.
Rf1 {[%clk 0:02:04.2]} 25... f6 {[%clk 0:01:25.9]} 26. Qg3 {[%clk 0:02:02.2]}
26... Kg7 {[%clk 0:01:25.9]} 27. Rf4 {[%clk 0:02:00.5]} 27... Rh8 {[%clk
0:01:20.1]} 28. Re1 {[%clk 0:01:58.8]} 28... Ra2 {[%clk 0:01:02.9]} 29. Bd3
{[%clk 0:01:47.9]} 29... Rh6 {[%clk 0:00:55.2]} 30. b4 {[%clk 0:01:31.5]} 30...
Ra3 {[%clk 0:00:41.6]} 31. Re3 {[%clk 0:01:30.2]} 31... c4 {[%clk 0:00:27.7]}
32. Bf1 {[%clk 0:01:22.2]} 32... Qb6 {[%clk 0:00:28.2]} 33. Re4 {[%clk
0:01:08.9]} 33... Rh5 {[%clk 0:00:15.4]} 34. Kh2 {[%clk 0:01:05.1]} 34... Rxe3
{[%clk 0:00:15]} 35. Rxe3 {[%clk 0:01:04]} 35... Qxb4 {[%clk 0:00:13.2]} 36. Be2
{[%clk 0:00:50.9]} 36... Rg5 {[%clk 0:00:12.4]} 37. Qf2 {[%clk 0:00:43]} 37...
Qd2 {[%clk 0:00:12.9]} 38. h4 {[%clk 0:00:32.4]} 38... Rf5 {[%clk 0:00:12.6]}
39. Qg3 {[%clk 0:00:32]} 39... c3 {[%clk 0:00:11.6]} 40. h5 {[%clk 0:00:19.9]}
40... c2 {[%clk 0:00:11.2]} 41. Rxe5 {[%clk 0:00:18.2]} 41... Rxh5+ {[%clk
0:00:11]} 42. Bxh5 {[%clk 0:00:17.4]} 42... Qh6 {[%clk 0:00:07.7]} 43. Re1
{[%clk 0:00:12.4]} 43... Qxh5+ {[%clk 0:00:05.8]} 44. Kg1 {[%clk 0:00:12.5]}
44... Qxd5 {[%clk 0:00:04.8]} 45. Qe3 {[%clk 0:00:12.4]} 45... e5 {[%clk
0:00:04.2]} 46. Rc1 {[%clk 0:00:11.4]} 46... Qd1+ {[%clk 0:00:04]} 47. Kf2
{[%clk 0:00:11.2]} 47... d5 {[%clk 0:00:04.1]} 48. Qe1 {[%clk 0:00:10.4]} 48...
Qd4+ {[%clk 0:00:02.8]} 49. Kf1 {[%clk 0:00:10.5]} 49... Qf4+ {[%clk 0:00:02.7]}
50. Kg1 {[%clk 0:00:10]} 1-0

[Event "*** Titled Tuesday Blitz"]
[Site "Chess.com"]
[Date "2020.11.03"]
[Round "6"]
[White "alexrustemov"]
[Black "gmmoranda"]
[Result "1/2-1/2"]
[WhiteElo "2678"]
[BlackElo "2879"]
[TimeControl "180+1"]
[EndTime "11:11:00 PST"]
[Termination "Game drawn - insufficient material"]

1. d4 {[%clk 0:03:00.9]} 1... Nf6 {[%clk 0:03:00]} 2. Nf3 {[%clk 0:02:58.8]}
2... e6 {[%clk 0:03:00.2]} 3. c4 {[%clk 0:02:58.2]} 3... d5 {[%clk 0:03:00.2]}
4. Nc3 {[%clk 0:02:57.4]} 4... c6 {[%clk 0:03:00.3]} 5. e3 {[%clk 0:02:54.9]}
5... a6 {[%clk 0:03:00.3]} 6. b3 {[%clk 0:02:49.6]} 6... c5 {[%clk 0:03:00.3]}
7. cxd5 {[%clk 0:02:47.9]} 7... cxd4 {[%clk 0:03:00.6]} 8. Nxd4 {[%clk
0:02:40.9]} 8... Nxd5 {[%clk 0:02:43.4]} 9. Bb2 {[%clk 0:02:27.6]} 9... Bb4
{[%clk 0:02:42.7]} 10. Qc2 {[%clk 0:02:18.9]} 10... Qa5 {[%clk 0:02:42.7]} 11.
a3 {[%clk 0:01:50]} 11... Bxc3+ {[%clk 0:02:41.7]} 12. Bxc3 {[%clk 0:01:50]}
12... Qxc3+ {[%clk 0:02:42.6]} 13. Qxc3 {[%clk 0:01:50.4]} 13... Nxc3 {[%clk
0:02:43.5]} 14. Rc1 {[%clk 0:01:50.8]} 14... Bd7 {[%clk 0:02:37.7]} 15. Rxc3
{[%clk 0:01:50.3]} 15... Nc6 {[%clk 0:02:38.2]} 16. Nxc6 {[%clk 0:01:37]} 16...
Bxc6 {[%clk 0:02:39.1]} 17. f3 {[%clk 0:01:35.4]} 17... Ke7 {[%clk 0:02:38.9]}
18. Bd3 {[%clk 0:01:33.4]} 18... Rac8 {[%clk 0:02:31.9]} 19. Kd2 {[%clk
0:01:19.6]} 19... Rhd8 {[%clk 0:02:27.3]} 20. Rhc1 {[%clk 0:01:17]} 20... Rd6
{[%clk 0:02:27.4]} 21. Ke2 {[%clk 0:00:53.8]} 21... Rcd8 {[%clk 0:02:27.5]} 22.
Rd1 {[%clk 0:00:39.9]} 22... e5 {[%clk 0:02:07.7]} 23. Bc2 {[%clk 0:00:38.6]}
23... Rxd1 {[%clk 0:01:59.8]} 24. Bxd1 {[%clk 0:00:39.5]} 24... f5 {[%clk
0:02:00]} 25. Bc2 {[%clk 0:00:36.1]} 25... g6 {[%clk 0:01:57]} 26. g3 {[%clk
0:00:36.2]} 26... Ke6 {[%clk 0:01:53.2]} 27. b4 {[%clk 0:00:35.7]} 27... g5
{[%clk 0:01:49.7]} 28. Bb3+ {[%clk 0:00:27.7]} 28... Kf6 {[%clk 0:01:49.8]} 29.
Rc5 {[%clk 0:00:26.8]} 29... h5 {[%clk 0:01:37.4]} 30. a4 {[%clk 0:00:26.1]}
30... h4 {[%clk 0:01:34.4]} 31. b5 {[%clk 0:00:25.8]} 31... axb5 {[%clk
0:01:35]} 32. axb5 {[%clk 0:00:26.5]} 32... Be8 {[%clk 0:01:35.4]} 33. Bc4
{[%clk 0:00:21.7]} 33... Rd6 {[%clk 0:01:15.6]} 34. Rc7 {[%clk 0:00:20.6]} 34...
Rb6 {[%clk 0:01:14.9]} 35. gxh4 {[%clk 0:00:20.7]} 35... gxh4 {[%clk 0:01:14.9]}
36. Rc5 {[%clk 0:00:20.5]} 36... Bd7 {[%clk 0:01:07.2]} 37. f4 {[%clk
0:00:20.7]} 37... exf4 {[%clk 0:01:06.3]} 38. exf4 {[%clk 0:00:21.6]} 38... Rd6
{[%clk 0:01:06.6]} 39. Ke3 {[%clk 0:00:21.3]} 39... Rd1 {[%clk 0:01:01.9]} 40.
Rd5 {[%clk 0:00:21]} 40... Re1+ {[%clk 0:00:41.8]} 41. Kf2 {[%clk 0:00:20.4]}
41... Re4 {[%clk 0:00:41.9]} 42. Rxd7 {[%clk 0:00:19.6]} 42... Rxf4+ {[%clk
0:00:42.3]} 43. Kg2 {[%clk 0:00:19.4]} 43... Rxc4 {[%clk 0:00:42.5]} 44. Rxb7
{[%clk 0:00:20]} 44... Rb4 {[%clk 0:00:42.8]} 45. Kh3 {[%clk 0:00:19]} 45... Ke5
{[%clk 0:00:30.8]} 46. b6 {[%clk 0:00:18]} 46... Kf4 {[%clk 0:00:31.1]} 47. Kxh4
{[%clk 0:00:17.3]} 47... Rb2 {[%clk 0:00:26.1]} 48. h3 {[%clk 0:00:17]} 48...
Rb3 {[%clk 0:00:26.5]} 49. Rb8 {[%clk 0:00:17]} 49... Kf3 {[%clk 0:00:25.9]} 50.
b7 {[%clk 0:00:16.3]} 50... f4 {[%clk 0:00:26.3]} 51. Kg5 {[%clk 0:00:16]} 51...
Kg3 {[%clk 0:00:26.4]} 52. h4 {[%clk 0:00:16.5]} 52... f3 {[%clk 0:00:26.7]} 53.
Rf8 {[%clk 0:00:14.4]} 53... Rxb7 {[%clk 0:00:22.8]} 54. h5 {[%clk 0:00:14.9]}
54... Rb5+ {[%clk 0:00:19.7]} 55. Kg6 {[%clk 0:00:15.4]} 55... f2 {[%clk
0:00:18.2]} 56. Rxf2 {[%clk 0:00:13]} 56... Kxf2 {[%clk 0:00:18]} 57. h6 {[%clk
0:00:13.9]} 57... Rb6+ {[%clk 0:00:17.9]} 58. Kg7 {[%clk 0:00:13.9]} 58... Rxh6
{[%clk 0:00:17.5]} 59. Kxh6 {[%clk 0:00:13.6]} 1/2-1/2

[Event "*** Titled Tuesday Blitz"]
[Site "Chess.com"]
[Date "2020.11.03"]
[Round "6"]
[White "Jospem"]
[Black "PavlovDanila"]
[Result "1/2-1/2"]
[WhiteElo "2993"]
[BlackElo "2686"]
[TimeControl "180+1"]
[EndTime "11:11:03 PST"]
[Termination "Game drawn - insufficient material"]

1. e4 {[%clk 0:03:00.9]} 1... e6 {[%clk 0:02:59.9]} 2. d4 {[%clk 0:02:58.4]}
2... d5 {[%clk 0:03:00.5]} 3. Nc3 {[%clk 0:02:59.3]} 3... Nf6 {[%clk 0:02:59.8]}
4. exd5 {[%clk 0:02:59.5]} 4... Nxd5 {[%clk 0:02:58.8]} 5. Bd3 {[%clk
0:02:57.5]} 5... Nc6 {[%clk 0:02:57.9]} 6. Nf3 {[%clk 0:02:57.6]} 6... Nxc3
{[%clk 0:02:52.5]} 7. bxc3 {[%clk 0:02:58.5]} 7... b6 {[%clk 0:02:52.5]} 8. Be4
{[%clk 0:02:54.5]} 8... Bb7 {[%clk 0:02:51.2]} 9. Ne5 {[%clk 0:02:46.8]} 9...
Nxe5 {[%clk 0:02:30.7]} 10. Bxb7 {[%clk 0:02:45.7]} 10... Rb8 {[%clk 0:02:30.9]}
11. Be4 {[%clk 0:02:29.3]} 11... Nd7 {[%clk 0:02:30.9]} 12. Bc6 {[%clk 0:02:18]}
12... Bd6 {[%clk 0:02:28.2]} 13. Qg4 {[%clk 0:02:09.2]} 13... O-O {[%clk
0:01:39.3]} 14. Bh6 {[%clk 0:02:05.3]} 14... Qf6 {[%clk 0:01:39.2]} 15. Be3
{[%clk 0:02:00.8]} 15... Qe7 {[%clk 0:01:24.9]} 16. O-O {[%clk 0:01:55.4]} 16...
Nf6 {[%clk 0:01:21.8]} 17. Qf3 {[%clk 0:01:55]} 17... e5 {[%clk 0:01:21.1]} 18.
Rae1 {[%clk 0:01:50.9]} 18... e4 {[%clk 0:01:12.4]} 19. Qh3 {[%clk 0:01:46.8]}
19... Ba3 {[%clk 0:01:02.5]} 20. Bf4 {[%clk 0:01:34.1]} 20... b5 {[%clk
0:00:51.1]} 21. f3 {[%clk 0:01:28.1]} 21... Rb6 {[%clk 0:00:51.2]} 22. Bxe4
{[%clk 0:01:25.2]} 22... Nxe4 {[%clk 0:00:51.3]} 23. fxe4 {[%clk 0:01:26.1]}
23... Rc6 {[%clk 0:00:48.5]} 24. Rf3 {[%clk 0:01:03.3]} 24... Bb2 {[%clk
0:00:39.1]} 25. Rb1 {[%clk 0:00:26.2]} 25... Qa3 {[%clk 0:00:38.8]} 26. Rbf1
{[%clk 0:00:12.1]} 26... Rxc3 {[%clk 0:00:36.2]} 27. Bxc7 {[%clk 0:00:11.3]}
27... Rxf3 {[%clk 0:00:32.5]} 28. Qxf3 {[%clk 0:00:11.6]} 28... Bxd4+ {[%clk
0:00:32.6]} 29. Kh1 {[%clk 0:00:11.6]} 29... Qxf3 {[%clk 0:00:19.7]} 30. gxf3
{[%clk 0:00:09.6]} 30... Rc8 {[%clk 0:00:20]} 31. Rd1 {[%clk 0:00:08.7]} 31...
Rxc7 {[%clk 0:00:20.1]} 32. Rxd4 {[%clk 0:00:08.9]} 32... g6 {[%clk 0:00:19.8]}
33. a4 {[%clk 0:00:05]} 33... Rxc2 {[%clk 0:00:15.7]} 34. axb5 {[%clk
0:00:04.7]} 34... Rb2 {[%clk 0:00:16.3]} 35. Rd5 {[%clk 0:00:04.7]} 35... Kf8
{[%clk 0:00:14.8]} 36. Kg1 {[%clk 0:00:04.6]} 36... Ke7 {[%clk 0:00:15.1]} 37.
h4 {[%clk 0:00:04.6]} 37... Ke6 {[%clk 0:00:15.1]} 38. h5 {[%clk 0:00:04.2]}
38... f5 {[%clk 0:00:15.3]} 39. Rc5 {[%clk 0:00:01.9]} 39... fxe4 {[%clk
0:00:09.3]} 40. fxe4 {[%clk 0:00:02.8]} 40... gxh5 {[%clk 0:00:08.8]} 41. Rxh5
{[%clk 0:00:03.7]} 41... Rb4 {[%clk 0:00:07.6]} 42. Rh6+ {[%clk 0:00:02.5]}
42... Ke5 {[%clk 0:00:05.5]} 43. Rxh7 {[%clk 0:00:03.4]} 43... Rb2 {[%clk
0:00:04.5]} 44. Rxa7 {[%clk 0:00:02.4]} 44... Kxe4 {[%clk 0:00:04.4]} 45. Ra5
{[%clk 0:00:01.5]} 45... Kd5 {[%clk 0:00:04.8]} 46. b6+ {[%clk 0:00:02]} 46...
Kc6 {[%clk 0:00:05.5]} 47. Ra6 {[%clk 0:00:02.4]} 47... Kb7 {[%clk 0:00:05.2]}
48. Ra1 {[%clk 0:00:03.1]} 48... Kxb6 {[%clk 0:00:05.2]} 49. Rf1 {[%clk
0:00:03.7]} 49... Kc5 {[%clk 0:00:05.7]} 50. Rf2 {[%clk 0:00:04.6]} 50... Rxf2
{[%clk 0:00:05.7]} 51. Kxf2 {[%clk 0:00:05]} 1/2-1/2

[Event "*** Titled Tuesday Blitz"]
[Site "Chess.com"]
[Date "2020.11.03"]
[Round "6"]
[White "Chernobay_Artem"]
[Black "grunbergmihai"]
[Result "0-1"]
[WhiteElo "2613"]
[BlackElo "2489"]
[TimeControl "180+1"]
[EndTime "11:11:05 PST"]
[Termination "grunbergmihai won by resignation"]

1. d4 {[%clk 0:03:00.9]} 1... f5 {[%clk 0:02:58.4]} 2. Nf3 {[%clk 0:02:54.5]}
2... Nf6 {[%clk 0:02:58]} 3. g3 {[%clk 0:02:54.3]} 3... g6 {[%clk 0:02:58.2]} 4.
Bg2 {[%clk 0:02:54.5]} 4... Bg7 {[%clk 0:02:59.1]} 5. O-O {[%clk 0:02:55]} 5...
O-O {[%clk 0:02:59.5]} 6. c4 {[%clk 0:02:55.6]} 6... c6 {[%clk 0:02:59.7]} 7.
Nc3 {[%clk 0:02:50.5]} 7... d6 {[%clk 0:02:59.4]} 8. b3 {[%clk 0:02:37.5]} 8...
Ne4 {[%clk 0:02:55.4]} 9. Nxe4 {[%clk 0:02:07.6]} 9... fxe4 {[%clk 0:02:55.1]}
10. Ng5 {[%clk 0:02:07.2]} 10... d5 {[%clk 0:02:54.9]} 11. cxd5 {[%clk 0:02:03]}
11... cxd5 {[%clk 0:02:54.6]} 12. f3 {[%clk 0:02:00.2]} 12... Nc6 {[%clk
0:02:50.1]} 13. Be3 {[%clk 0:01:45.7]} 13... exf3 {[%clk 0:02:29.1]} 14. Nxf3
{[%clk 0:01:32.1]} 14... Qb6 {[%clk 0:02:15.9]} 15. Qd2 {[%clk 0:01:29.5]} 15...
Bf5 {[%clk 0:02:08.2]} 16. Rac1 {[%clk 0:01:15]} 16... Rac8 {[%clk 0:02:05.1]}
17. Rc5 {[%clk 0:00:59.6]} 17... Be4 {[%clk 0:02:00.7]} 18. Ng5 {[%clk
0:00:47.2]} 18... Bxg2 {[%clk 0:01:54]} 19. Rxf8+ {[%clk 0:00:44.3]} 19... Bxf8
{[%clk 0:01:31.5]} 20. Kxg2 {[%clk 0:00:42.8]} 20... e6 {[%clk 0:01:25.3]} 21.
Rc1 {[%clk 0:00:34]} 21... Re8 {[%clk 0:01:22.5]} 22. Bf2 {[%clk 0:00:33.9]}
22... Bh6 {[%clk 0:01:15.4]} 23. Qf4 {[%clk 0:00:22.6]} 23... Rf8 {[%clk
0:01:07.3]} 24. Qh4 {[%clk 0:00:22.6]} 24... Bxg5 {[%clk 0:01:04.2]} 25. Qxg5
{[%clk 0:00:23.5]} 25... Qd8 {[%clk 0:00:53.4]} 26. Qxd8 {[%clk 0:00:22.7]}
26... Rxd8 {[%clk 0:00:53]} 27. a3 {[%clk 0:00:22]} 27... Kf7 {[%clk 0:00:50]}
28. g4 {[%clk 0:00:18.3]} 28... Rc8 {[%clk 0:00:41.5]} 29. e3 {[%clk 0:00:17.5]}
29... Ne7 {[%clk 0:00:39.1]} 30. Rxc8 {[%clk 0:00:16.1]} 30... Nxc8 {[%clk
0:00:38.9]} 31. Bg3 {[%clk 0:00:16.7]} 31... Ne7 {[%clk 0:00:32.9]} 32. Kf3
{[%clk 0:00:16.9]} 32... Nc6 {[%clk 0:00:30.1]} 33. Bd6 {[%clk 0:00:16.8]} 33...
Kf6 {[%clk 0:00:29.5]} 34. Kf4 {[%clk 0:00:11.5]} 34... a6 {[%clk 0:00:27.4]}
35. g5+ {[%clk 0:00:07.4]} 35... Kf7 {[%clk 0:00:26.9]} 36. e4 {[%clk
0:00:07.8]} 36... Nxd4 {[%clk 0:00:24.5]} 37. exd5 {[%clk 0:00:06.5]} 37... exd5
{[%clk 0:00:24.6]} 38. Ke5 {[%clk 0:00:05.1]} 38... Nxb3 {[%clk 0:00:20.3]} 39.
Kxd5 {[%clk 0:00:05.5]} 39... Nd2 {[%clk 0:00:19.9]} 40. Bf4 {[%clk 0:00:05.4]}
40... Nf3 {[%clk 0:00:18.9]} 41. Ke4 {[%clk 0:00:04.3]} 41... Nh4 {[%clk
0:00:18.3]} 42. Bb8 {[%clk 0:00:02.6]} 42... Ke6 {[%clk 0:00:17.8]} 43. Bg3
{[%clk 0:00:02.9]} 43... Nf5 {[%clk 0:00:17.7]} 44. Be5 {[%clk 0:00:02.9]} 44...
Nd6+ {[%clk 0:00:17.5]} 45. Kf4 {[%clk 0:00:03.3]} 45... Nf7 {[%clk 0:00:17.1]}
46. Bf6 {[%clk 0:00:03.3]} 46... h6 {[%clk 0:00:16.5]} 47. h4 {[%clk 0:00:02.6]}
47... h5 {[%clk 0:00:16.3]} 48. Ke4 {[%clk 0:00:02.8]} 48... Nd6+ {[%clk
0:00:16.2]} 49. Kd4 {[%clk 0:00:03.3]} 49... Nf5+ {[%clk 0:00:17.1]} 50. Kc5
{[%clk 0:00:03]} 50... Nxh4 {[%clk 0:00:15.8]} 51. Kb6 {[%clk 0:00:03.2]} 51...
Nf3 {[%clk 0:00:15]} 52. Kxb7 {[%clk 0:00:03.1]} 52... h4 {[%clk 0:00:14.7]} 53.
Kxa6 {[%clk 0:00:04]} 53... h3 {[%clk 0:00:14.8]} 0-1